fUSD/lending_fUSD_20260227
["ID","MTS","AMOUNT","RATE_DAILY","PERIOD"]
[406847048,1772226641540,-32158.97035652,0.00017,2]
[406847049,1772226641549,-168.0,0.00017409,2]
[406847050,1772226641558,-2100.0,0.000175,6]
[406847051,1772226641567,-577.021544,0.00017519,7]
[406847052,1772226641576,-2394.612153,0.00017519,7]
[406847053,1772226641586,-4000.0,0.00017534,2]
[406847054,1772226641595,-2000.0,0.0001759,2]
[406847055,1772226641604,-400.0,0.000176,6]
[406847056,1772226641614,-2000.0,0.0001769,2]
[406847057,1772226641623,-400.0,0.000177,6]
[406847058,1772226641632,-150.0,0.00017711,7]
[406847059,1772226641642,-2000.0,0.0001779,2]
[406847060,1772226641651,-400.0,0.000178,6]
[406847061,1772226641660,-5000.0,0.00017808,2]
[406847062,1772226641670,-500.0,0.00017808,2]
[406847063,1772226641679,-500.0,0.00017808,2]
[406847064,1772226641688,-500.0,0.00017808,2]
[406847065,1772226641698,-500.0,0.00017808,2]
[406847066,1772226641707,-290.89327751,0.00017808,2]
[406847067,1772226641717,-1075.08672241,0.0001789,2]
[406847068,1772226641726,-19420.49031765,0.000179,3]
[406847069,1772226641735,-2037.38455458,0.000179,2]
[406847070,1772226641744,-400.0,0.000179,6]
[406847071,1772226641753,-552.35590586,0.000179,2]
[406847072,1772226641763,-15605.89817039,0.000179,2]
[406847073,1772226641773,-3876.94712041,0.000179,2]
[406847074,1772226641782,-1699.12989508,0.0001799,2]
[406847075,1772226641791,-1699.12989508,0.0001799,2]
[406847076,1772226641800,-300.0,0.00017999,2]
[406847077,1772226641813,-500.0,0.00017999,2]
[406847078,1772226641822,-500.0,0.00017999,2]
[406847079,1772226641831,-500.0,0.00017999,2]
[406847080,1772226641840,-500.0,0.00017999,2]
[406847081,1772226641850,-500.0,0.00017999,2]
[406847082,1772226641859,-500.0,0.00017999,2]
[406847083,1772226641867,-500.0,0.00017999,2]
[406847084,1772226641876,-500.0,0.00017999,2]
[406847085,1772226641885,-511.11,0.00017999,2]
[406847086,1772226641895,-500.0,0.00017999,2]
[406847087,1772226641904,-3641377.74164291,0.00018,2]
[406847088,1772226641936,-357.70164442,0.00012787,2]
[406847089,1772226641946,-7976750.43868568,0.00018,2]
[406847090,1772226641957,-786.15248583,0.00018,2]
[406847091,1772226641967,-657.65,0.00018,2]
[406847092,1772226641982,-1670.5,0.00018,2]
[406847093,1772226641996,-490.7231731,0.00018,2]
[406847101,1772226642983,-12504.9330007,0.00018,2]
[406847197,1772226645310,-161.26,0.00011967,2]
[406847198,1772226645320,-357.70164442,0.00013809,2]
[406847199,1772226645329,-161.26,0.00014959,2]
[406847200,1772226645339,-161.26,0.00017951,2]
[406847201,1772226645349,-469987.16616498,0.00018,2]
[406847202,1772226645358,-111816.05470137,0.00018,2]
[406847203,1772226645369,-79370.42777764,0.00018,2]
[406847204,1772226645380,-21223.6762974,0.00018,2]
[406847205,1772226645637,-301.301,0.00018,2]
[406847206,1772226645649,-552.8612,0.00018,2]
[406847218,1772226710237,-535.567,7.688e-05,2]
[406847219,1772226710266,-184.46580222,7.688e-05,2]
[406847220,1772226710298,-1000.0,7.844e-05,2]
[406847221,1772226710330,-2070.96719778,7.845e-05,2]
[406847222,1772227103389,800.0,9e-05,3]
[406847223,1772227172700,800.0,9e-05,3]
[406847224,1772227475412,5000.01,7.069e-05,2]
[406847225,1772227475434,5000.01,7.069e-05,2]
[406847226,1772227475455,5000.01,7.069e-05,2]
[406847227,1772227475475,5000.01,7.069e-05,2]
[406847228,1772227475496,5000.01,7.069e-05,2]
[406847229,1772227475517,5000.01,7.069e-05,2]
[406847230,1772227475542,5000.01,7.069e-05,2]
[406847231,1772227475563,5000.01,7.069e-05,2]
[406847232,1772227475587,10000.01,7.069e-05,2]
[406847233,1772227475609,5476.3,7.069e-05,2]
[406847234,1772227584759,-300.0,7.281e-05,2]
[406847235,1772227584786,-1000.0,7.282e-05,2]
[406847236,1772227584813,-1200.0,7.282e-05,2]
[406847237,1772227584841,-300.0,7.282e-05,2]
[406847238,1772227584869,-1200.0,7.282e-05,2]
[406847239,1772227584896,-300.0,7.282e-05,2]
[406847240,1772227586180,-4864.94511894,7.283e-05,2]
[406847241,1772227586305,10000.01,7.183e-05,2]
[406847242,1772227586330,10000.01,7.183e-05,2]
[406847243,1772227586357,10000.01,7.183e-05,2]
[406847244,1772227586383,10000.01,7.183e-05,2]
[406847245,1772227586406,5000.01,7.183e-05,2]
[406847246,1772227586432,10000.01,7.183e-05,2]
[406847247,1772227586457,10000.01,7.183e-05,2]
[406847248,1772227586481,5000.01,7.183e-05,2]
[406847249,1772227586504,10000.01,7.183e-05,2]
[406847250,1772227586678,5000.01,7.183e-05,2]
[406847251,1772227586704,5000.01,7.183e-05,2]
[406847252,1772227586730,10000.01,7.183e-05,2]
[406847253,1772227586753,5000.01,7.183e-05,2]
[406847254,1772227586778,10000.01,7.183e-05,2]
[406847255,1772227586802,5000.01,7.183e-05,2]
[406847256,1772227586825,5000.01,7.183e-05,2]
[406847257,1772227586849,5000.01,7.183e-05,2]
[406847258,1772227586873,10000.01,7.183e-05,2]
[406847259,1772227586896,5000.01,7.183e-05,2]
[406847260,1772227586919,5000.01,7.183e-05,2]
[406847262,1772227593553,-3550.01,7.183e-05,2]
[406847263,1772227593790,-5000.01,7.183e-05,2]
[406847264,1772227593841,-5000.01,7.183e-05,2]
[406847265,1772227593974,-5000.01,7.183e-05,2]
[406847266,1772227594053,-5000.01,7.183e-05,2]
[406847267,1772227594197,-5000.01,7.183e-05,2]
[406847268,1772227594770,-10000.01,7.183e-05,2]
[406847269,1772227596473,-411.64616592,7.182e-05,2]
[406847270,1772227596507,-234.99280194,7.182e-05,2]
[406847271,1772227596535,-481.83720997,7.182e-05,2]
[406847272,1772227596564,-500.0,7.182e-05,2]
[406847273,1772227596596,-500.0,7.182e-05,2]
[406847274,1772227596627,-243.05764434,7.182e-05,2]
[406847275,1772227596725,-256.94235566,7.182e-05,2]
[406847276,1772227596754,-500.0,7.182e-05,2]
[406847277,1772227596786,-500.0,7.182e-05,2]
[406847278,1772227596817,-500.0,7.182e-05,2]
[406847279,1772227596845,-454.0741727,7.182e-05,2]
[406847280,1772227596876,-500.0,7.182e-05,2]
[406847281,1772227596907,-500.0,7.182e-05,2]
[406847282,1772227596943,-500.0,7.182e-05,2]
[406847283,1772227596974,-500.0,7.182e-05,2]
[406847284,1772227597006,-500.0,7.182e-05,2]
[406847285,1772227597036,-77.97694328,7.182e-05,2]
[406847286,1772227597112,-256.94235566,7.182e-05,2]
[406847287,1772227597174,-165.08070106,7.182e-05,2]
[406847288,1772227597205,-500.0,7.182e-05,2]
[406847289,1772227597237,-500.0,7.182e-05,2]
[406847290,1772227597270,-500.0,7.182e-05,2]
[406847291,1772227597300,-500.0,7.182e-05,2]
[406847292,1772227597330,-169.84859788,7.182e-05,2]
[406847293,1772227597521,-330.15140212,7.182e-05,2]
[406847294,1772227597553,-500.0,7.182e-05,2]
[406847295,1772227597583,-500.0,7.182e-05,2]
[406847296,1772227597612,-500.0,7.182e-05,2]
[406847297,1772227597702,-500.0,7.182e-05,2]
[406847298,1772227597734,-500.0,7.182e-05,2]
[406847299,1772227597891,-500.0,7.182e-05,2]
[406847300,1772227597921,-500.0,7.182e-05,2]
[406847301,1772227597951,-500.0,7.182e-05,2]
[406847302,1772227597982,-500.0,7.182e-05,2]
[406847303,1772227598065,-500.0,7.182e-05,2]
[406847304,1772227598206,-500.0,7.182e-05,2]
[406847305,1772227598238,-500.0,7.182e-05,2]
[406847306,1772227598269,-500.0,7.182e-05,2]
[406847307,1772227598300,-500.0,7.182e-05,2]
[406847308,1772227598419,-500.0,7.182e-05,2]
[406847309,1772227598450,-500.0,7.182e-05,2]
[406847310,1772227598481,-500.0,7.182e-05,2]
[406847311,1772227598512,-500.0,7.182e-05,2]
[406847312,1772227598542,-500.0,7.182e-05,2]
[406847313,1772227598685,-500.0,7.182e-05,2]
[406847314,1772227598719,-500.0,7.182e-05,2]
[406847315,1772227598752,-500.0,7.182e-05,2]
[406847316,1772227598783,-500.0,7.182e-05,2]
[406847317,1772227598888,-500.0,7.182e-05,2]
[406847318,1772227598919,-500.0,7.182e-05,2]
[406847319,1772227598949,-500.0,7.182e-05,2]
[406847320,1772227598979,-500.0,7.182e-05,2]
[406847321,1772227599071,-500.0,7.182e-05,2]
[406847322,1772227599102,-500.0,7.182e-05,2]
[406847323,1772227599335,-500.0,7.182e-05,2]
[406847324,1772227599345,-830.16140212,7.183e-05,2]
[406847325,1772227599416,-6761.74025248,7.183e-05,2]
[406847326,1772227599433,-500.0,7.183e-05,2]
[406847327,1772227599446,-500.0,7.183e-05,2]
[406847328,1772227599459,-500.0,7.183e-05,2]
[406847329,1772227599472,-500.0,7.183e-05,2]
[406847330,1772227599489,-1000.01,7.183e-05,2]
[406847331,1772227599503,-500.0,7.183e-05,2]
[406847332,1772227599517,-9000.01,7.183e-05,2]
[406847333,1772227599530,-500.0,7.183e-05,2]
[406847334,1772227599543,-500.0,7.183e-05,2]
[406847335,1772227599556,-500.0,7.183e-05,2]
[406847336,1772227599571,-500.0,7.183e-05,2]
[406847337,1772227599584,-6000.01,7.183e-05,2]
[406847338,1772227599597,-500.0,7.183e-05,2]
[406847339,1772227599614,-500.0,7.183e-05,2]
[406847340,1772227599628,-500.0,7.183e-05,2]
[406847341,1772227599641,-500.0,7.183e-05,2]
[406847342,1772227599654,-500.0,7.183e-05,2]
[406847343,1772227599668,-5000.01,7.183e-05,2]
[406847344,1772227599681,-500.0,7.183e-05,2]
[406847345,1772227599695,-500.0,7.183e-05,2]
[406847346,1772227599709,-500.0,7.183e-05,2]
[406847347,1772227599721,-500.0,7.183e-05,2]
[406847348,1772227599735,-6000.01,7.183e-05,2]
[406847349,1772227599748,-500.0,7.183e-05,2]
[406847350,1772227599762,-500.0,7.183e-05,2]
[406847351,1772227599780,-500.0,7.183e-05,2]
[406847352,1772227599793,-500.0,7.183e-05,2]
[406847353,1772227599807,-6000.01,7.183e-05,2]
[406847354,1772227599820,-500.0,7.183e-05,2]
[406847355,1772227599833,-500.0,7.183e-05,2]
[406847356,1772227599847,-8000.01,7.183e-05,2]
[406847357,1772227599891,-10000.01,7.183e-05,2]
[406847358,1772227599904,-10000.01,7.183e-05,2]
[406847359,1772227599917,-10000.01,7.183e-05,2]
[406847360,1772227600078,-10000.01,7.183e-05,2]
[406847361,1772227600214,-10000.01,7.183e-05,2]
[406847362,1772227600343,-10000.01,7.183e-05,2]
[406847363,1772227600446,-10000.01,7.183e-05,2]
[406847364,1772227600552,-10000.01,7.183e-05,2]
[406847365,1772227603303,-5000.01,7.183e-05,2]
[406847366,1772227603431,-5000.01,7.183e-05,2]
[406847367,1772227603532,-5000.01,7.183e-05,2]
[406847368,1772227603692,-5000.01,7.183e-05,2]
[406847369,1772227608363,-5000.01,7.183e-05,2]
[406847370,1772227804201,150.0,6.9e-05,7]
[406847371,1772227829839,-700.0,6.8e-05,2]
[406847372,1772227829880,-197.47,6.8e-05,2]
[406847373,1772227829909,-150.0,6.8e-05,2]
[406847374,1772227829938,-209.0,6.8e-05,2]
[406847378,1772227831549,-5000.0,6.825e-05,2]
[406847379,1772227831558,-250.0,6.85e-05,2]
[406847380,1772227831568,-5000.0,6.9e-05,2]
[406847381,1772227831577,-1400.0,6.9e-05,2]
[406847382,1772227831587,-3437.87,6.95e-05,2]
[406847383,1772227831601,-1200.0,6.999e-05,2]
[406847384,1772227831610,-2100.0,7e-05,2]
[406847385,1772227831620,-159.0,7.172e-05,2]
[406847386,1772227831634,-300.0,7.172e-05,2]
[406847387,1772227831643,-1493.9761491,7.173e-05,2]
[406847388,1772227831653,-757.0,7.181e-05,2]
[406847389,1772227831662,-150.0,7.182e-05,2]
[406847390,1772227831671,-500.0,7.182e-05,2]
[406847392,1772227831681,-500.0,7.182e-05,2]
[406847394,1772227831690,-500.0,7.182e-05,2]
[406847396,1772227831699,-500.0,7.182e-05,2]
[406847398,1772227831709,-436.32428468,7.182e-05,2]
[406847400,1772227831718,-161.92412969,7.182e-05,2]
[406847402,1772227831728,-838.70159803,7.182e-05,2]
[406847404,1772227831737,-838.70159803,7.182e-05,2]
[406847405,1772227831747,-838.70159803,7.182e-05,2]
[406847406,1772227831757,-838.70159803,7.182e-05,2]
[406847407,1772227831766,-838.70159803,7.182e-05,2]
[406847408,1772227831775,-838.70159803,7.182e-05,2]
[406847409,1772227831785,-838.70159803,7.182e-05,2]
[406847410,1772227831795,-838.70159803,7.182e-05,2]
[406847411,1772227831805,-838.70159803,7.182e-05,2]
[406847412,1772227831814,-838.70159803,7.182e-05,2]
[406847413,1772227831824,-838.70159803,7.182e-05,2]
[406847414,1772227831833,-838.70159803,7.182e-05,2]
[406847415,1772227831843,-838.70159803,7.182e-05,2]
[406847416,1772227831852,-838.70159803,7.182e-05,2]
[406847417,1772227831862,-838.70159803,7.182e-05,2]
[406847418,1772227831872,-838.70159803,7.182e-05,2]
[406847419,1772227831881,-838.70159803,7.182e-05,2]
[406847420,1772227831890,-838.70159803,7.182e-05,2]
[406847421,1772227831899,-838.70159803,7.182e-05,2]
[406847422,1772227831909,-838.70159803,7.182e-05,2]
[406847423,1772227831918,-838.70159803,7.182e-05,2]
[406847424,1772227831927,-838.70159803,7.182e-05,2]
[406847425,1772227831937,-838.70159803,7.182e-05,2]
[406847426,1772227831946,-838.70159803,7.182e-05,2]
[406847427,1772227831956,-838.70159803,7.182e-05,2]
[406847428,1772227831965,-838.70159803,7.182e-05,2]
[406847429,1772227831979,-838.70159803,7.182e-05,2]
[406847430,1772227831989,-838.70159803,7.182e-05,2]
[406847431,1772227831999,-838.70159803,7.182e-05,2]
[406847432,1772227832009,-838.70159803,7.182e-05,2]
[406847433,1772227832019,-838.70159803,7.182e-05,2]
[406847434,1772227832029,-838.70159803,7.182e-05,2]
[406847435,1772227832038,-838.70159803,7.182e-05,2]
[406847436,1772227832047,-838.70159803,7.182e-05,2]
[406847437,1772227832057,-838.70159803,7.182e-05,2]
[406847438,1772227832066,-838.70159803,7.182e-05,2]
[406847439,1772227832076,-838.70159803,7.182e-05,2]
[406847440,1772227832085,-838.70159803,7.182e-05,2]
[406847441,1772227832095,-838.70159803,7.182e-05,2]
[406847442,1772227832104,-838.70159803,7.182e-05,2]
[406847443,1772227832114,-838.70159803,7.182e-05,2]
[406847444,1772227832124,-838.70159803,7.182e-05,2]
[406847445,1772227832133,-838.70159803,7.182e-05,2]
[406847446,1772227832142,-838.70159803,7.182e-05,2]
[406847447,1772227832152,-838.70159803,7.182e-05,2]
[406847448,1772227832161,-838.70159803,7.182e-05,2]
[406847449,1772227832176,-838.70159803,7.182e-05,2]
[406847450,1772227832187,-838.70159803,7.182e-05,2]
[406847451,1772227832196,-838.70159803,7.182e-05,2]
[406847452,1772227832207,-838.70159803,7.182e-05,2]
[406847453,1772227832216,-1629.86017581,7.183e-05,2]
[406847454,1772227832226,-935.31241748,7.183e-05,2]
[406847455,1772227832236,-613.73156102,7.183e-05,2]
[406847456,1772227832246,-241.26843898,7.183e-05,2]
[406847457,1772227832257,-1645857.6283454,7.183e-05,2]
[406847458,1772227832266,-895.1342104,7.283e-05,2]
[406847459,1772227832276,-48449.81488106,7.283e-05,2]
[406847460,1772227832285,-352.0,7.291e-05,2]
[406847461,1772227832295,-170.0,7.305e-05,2]
[406847462,1772227832314,-395.0,7.32e-05,2]
[406847463,1772227832324,-1692.0,7.364e-05,2]
[406847464,1772227832334,-554.4829359,7.378e-05,2]
[406847465,1772227832344,-250.0,7.48e-05,2]
[406847466,1772227832360,-5000.0,7.48e-05,2]
[406847467,1772227832369,-428.453,7.59e-05,2]
[406847468,1772227832379,-89527.5151,7.626e-05,2]
[406847469,1772227832551,-5663.271,7.645e-05,2]
[406847470,1772227832607,-4132.8248,7.645e-05,2]
[406847471,1772227832629,-1680.0,7.699e-05,2]
[406847472,1772227832643,-255.05,7.7e-05,2]
[406847473,1772227832654,-288.15231614,7.725e-05,2]
[406847474,1772227832667,-164.49496136,7.725e-05,2]
[406847475,1772227832678,-30384.0,7.726e-05,2]
[406847476,1772227832689,-22324.98,7.726e-05,2]
[406847477,1772227832701,-9999.99,7.743e-05,2]
[406847478,1772227832714,-499.99,7.743e-05,2]
[406847479,1772227832727,-999.99,7.743e-05,2]
[406847480,1772227832741,-84176.79,7.743e-05,2]
[406847481,1772227832750,-1186.29,7.743e-05,2]
[406847482,1772227832762,-3839.7,7.743e-05,2]
[406847483,1772227832774,-9999.99,7.743e-05,2]
[406847484,1772227832788,-311.65,7.743e-05,2]
[406847485,1772227832804,-9999.99,7.744e-05,2]
[406847486,1772227832817,-9999.99,7.744e-05,2]
[406847487,1772227832829,-5920.37,7.744e-05,2]
[406847488,1772227832843,-516.15,7.744e-05,2]
[406847489,1772227832856,-7664.4,7.744e-05,2]
[406847490,1772227832869,-549.24,7.744e-05,2]
[406847491,1772227832880,-9999.99,7.744e-05,2]
[406847492,1772227832895,-150.99,7.744e-05,2]
[406847493,1772227832907,-9999.99,7.744e-05,2]
[406847494,1772227832920,-6112.0562928,7.744e-05,2]
[406847495,1772227832935,-1465.4137072,7.744e-05,2]
[406847496,1772227832947,-1613.95,7.744e-05,2]
[406847497,1772227832958,-14664.05,7.744e-05,2]
[406847498,1772227832969,-2706.71,7.744e-05,2]
[406847499,1772227832982,-4999.99,7.744e-05,2]
[406847500,1772227832994,-299.99,7.744e-05,2]
[406847501,1772227833007,-420.0,7.889e-05,2]
[406847502,1772227833020,-255.0,7.9e-05,2]
[406847503,1772227833031,-250.0,7.901e-05,2]
[406847504,1772227833043,-549.24,8.018e-05,2]
[406847505,1772227833055,-482.0,8.074e-05,2]
[406847506,1772227833071,-289.79640327,8.074e-05,2]
[406847507,1772227833085,-178.0,8.094e-05,2]
[406847508,1772227833095,-552.0,8.11e-05,2]
[406847509,1772227833108,-4350.01,8.178e-05,2]
[406847510,1772227833119,-276.0,8.207e-05,2]
[406847511,1772227833131,-340.602726,8.219e-05,2]
[406847512,1772227833142,-153.86,8.219e-05,2]
[406847513,1772227833153,-500.0,8.219e-05,2]
[406847514,1772227833167,-383.0,8.224e-05,2]
[406847515,1772227833181,-324.0,8.225e-05,2]
[406847516,1772227833196,-1000.0,8.242e-05,2]
[406847517,1772227833205,-824.0,8.288e-05,2]
[406847518,1772227833215,-289.0,8.288e-05,2]
[406847519,1772227833227,-549.24,8.292e-05,2]
[406847520,1772227833236,-365.0,8.304e-05,2]
[406847521,1772227833245,-220.0,8.321e-05,2]
[406847522,1772227833255,-1566.0,8.339e-05,2]
[406847523,1772227833265,-2351.0,8.469e-05,2]
[406847524,1772227833275,-500.0,8.493e-05,2]
[406847525,1772227833296,-549.24,8.566e-05,2]
[406847526,1772227833308,-500.0,8.673e-05,2]
[406847527,1772227833320,-564.29358938,8.673e-05,2]
[406847528,1772227833331,-226.36271147,8.673e-05,2]
[406847529,1772227833343,-501.75629018,8.673e-05,2]
[406847530,1772227833353,-500.0,8.673e-05,2]
[406847531,1772227833363,-500.0,8.673e-05,2]
[406847532,1772227833372,-500.0,8.673e-05,2]
[406847533,1772227833382,-163.07132872,8.673e-05,2]
[406847534,1772227833391,-500.0,8.673e-05,2]
[406847535,1772227833401,-500.0,8.673e-05,2]
[406847536,1772227833410,-500.0,8.673e-05,2]
[406847537,1772227833420,-500.0,8.673e-05,2]
[406847538,1772227833429,-500.0,8.673e-05,2]
[406847539,1772227833439,-500.99420847,8.673e-05,2]
[406847540,1772227833448,-500.0,8.673e-05,2]
[406847541,1772227833458,-455.66842206,8.673e-05,2]
[406847542,1772227833467,-501.02670572,8.673e-05,2]
[406847543,1772227833477,-500.0,8.673e-05,2]
[406847544,1772227833486,-500.0,8.673e-05,2]
[406847545,1772227833496,-500.0,8.673e-05,2]
[406847546,1772227833506,-500.0,8.673e-05,2]
[406847547,1772227833515,-500.0,8.673e-05,2]
[406847548,1772227833524,-500.0,8.673e-05,2]
[406847549,1772227833533,-587.0,8.678e-05,2]
[406847550,1772227833543,-433.0,8.69e-05,2]
[406847551,1772227833552,-32556.1937456,8.696e-05,2]
[406847552,1772227833601,-329.1054544,8.696e-05,2]
[406847553,1772227833611,-500.0,8.767e-05,2]
[406847554,1772227833620,-549.24,8.84e-05,2]
[406847555,1772227833630,-250.0,8.985e-05,2]
[406847556,1772227833640,-500.0,9.041e-05,2]
[406847557,1772227833649,-549.2537247,9.114e-05,2]
[406847558,1772227833658,-1000.0,9.221e-05,2]
[406847559,1772227833668,-1000.0,9.221e-05,2]
[406847560,1772227833677,-307.71196301,9.221e-05,2]
[406847561,1772227833686,-1000.0,9.221e-05,2]
[406847562,1772227833696,-1088.21122201,9.221e-05,2]
[406847563,1772227833705,-500.0,9.221e-05,2]
[406847564,1772227833715,-1000.0,9.221e-05,2]
[406847565,1772227833725,-1000.0,9.221e-05,2]
[406847566,1772227833735,-1000.0,9.221e-05,2]
[406847567,1772227833744,-1000.0,9.221e-05,2]
[406847568,1772227833753,-501.82753949,9.221e-05,2]
[406847569,1772227833763,-500.0,9.315e-05,2]
[406847570,1772227833773,-3292.0,9.316e-05,2]
[406847571,1772227833782,-712.0,9.546e-05,2]
[406847572,1772227833792,-736.0,9.559e-05,2]
[406847573,1772227833801,-500.0,9.589e-05,2]
[406847574,1772227833810,-1532.01941831,9.768e-05,2]
[406847575,1772227833819,-1606.66674669,9.768e-05,2]
[406847576,1772227833828,-1502.07392204,9.768e-05,2]
[406847577,1772227833838,-1500.0,9.768e-05,2]
[406847578,1772227833847,-1500.0,9.768e-05,2]
[406847579,1772227833857,-1500.0,9.768e-05,2]
[406847580,1772227833870,-849.73752759,9.768e-05,2]
[406847581,1772227833879,-500.0,9.863e-05,2]
[406847582,1772227833889,-1417.42,9.9e-05,2]
[406847583,1772227833898,-726.03500525,0.0001,2]
[406847584,1772227833908,-726.03500525,0.0001,2]
[406847585,1772227833918,-726.03500525,0.0001,2]
[406847586,1772227833927,-151.0,0.0001,2]
[406847587,1772227833936,-500.0,0.0001,2]
[406847588,1772227833946,-500.0,0.0001,2]
[406847589,1772227833955,-151.0,0.0001,2]
[406847590,1772227833964,-500.0,0.0001,2]
[406847591,1772227833973,-151.0,0.0001,2]
[406847592,1772227833983,-500.0,0.0001,2]
[406847593,1772227833992,-151.0,0.0001,2]
[406847594,1772227834002,-500.0,0.0001,2]
[406847595,1772227834011,-151.0,0.0001,2]
[406847596,1772227834020,-500.0,0.0001,2]
[406847597,1772227834030,-151.0,0.0001,2]
[406847598,1772227834040,-151.0,0.0001,2]
[406847599,1772227834049,-500.0,0.0001,2]
[406847600,1772227834059,-151.0,0.0001,2]
[406847601,1772227834073,-500.0,0.0001,2]
[406847602,1772227834082,-151.0,0.0001,2]
[406847603,1772227834092,-500.0,0.0001,2]
[406847604,1772227834101,-151.0,0.0001,2]
[406847605,1772227834110,-500.0,0.0001,2]
[406847606,1772227834120,-500.0,0.0001,2]
[406847607,1772227834129,-500.0,0.0001,2]
[406847608,1772227834139,-500.0,0.0001,2]
[406847609,1772227834148,-151.0,0.0001,2]
[406847610,1772227834158,-151.0,0.0001,2]
[406847611,1772227834167,-151.0,0.0001,2]
[406847612,1772227834180,-151.0,0.0001,2]
[406847613,1772227834189,-151.0,0.0001,2]
[406847614,1772227834199,-151.0,0.0001,2]
[406847615,1772227834209,-151.0,0.0001,2]
[406847616,1772227834220,-151.0,0.0001,2]
[406847617,1772227834230,-151.0,0.0001,2]
[406847618,1772227834239,-151.0,0.0001,2]
[406847619,1772227834249,-151.0,0.0001,2]
[406847620,1772227834259,-151.0,0.0001,2]
[406847621,1772227834268,-151.0,0.0001,2]
[406847622,1772227834278,-151.0,0.0001,2]
[406847623,1772227834287,-151.0,0.0001,2]
[406847624,1772227834297,-151.0,0.0001,2]
[406847625,1772227834307,-151.0,0.0001,2]
[406847626,1772227834316,-151.0,0.0001,2]
[406847627,1772227834326,-151.0,0.0001,2]
[406847628,1772227834335,-151.0,0.0001,2]
[406847629,1772227834345,-151.0,0.0001,2]
[406847630,1772227834355,-151.0,0.0001,2]
[406847631,1772227834364,-2037.3845546,0.0001,2]
[406847632,1772227834374,-151.0,0.0001,2]
[406847633,1772227834383,-151.0,0.0001,2]
[406847634,1772227834393,-151.0,0.0001,2]
[406847635,1772227834403,-151.0,0.0001,2]
[406847636,1772227834413,-151.0,0.0001,2]
[406847637,1772227834423,-151.0,0.0001,2]
[406847638,1772227834432,-151.0,0.0001,2]
[406847639,1772227834442,-151.0,0.0001,2]
[406847640,1772227834451,-151.0,0.0001,2]
[406847641,1772227834461,-151.0,0.0001,2]
[406847642,1772227834470,-151.0,0.0001,2]
[406847643,1772227834481,-1053.03002661,0.0001,2]
[406847644,1772227834490,-500.0,0.0001,2]
[406847645,1772227834499,-500.0,0.0001,2]
[406847646,1772227834508,-500.0,0.0001,2]
[406847647,1772227834518,-500.0,0.0001,2]
[406847648,1772227834528,-500.0,0.0001,2]
[406847649,1772227834537,-500.0,0.0001,2]
[406847650,1772227834547,-500.0,0.0001,2]
[406847651,1772227834556,-500.0,0.0001,2]
[406847652,1772227834566,-500.0,0.0001,2]
[406847653,1772227834575,-500.0,0.0001,2]
[406847654,1772227834584,-500.0,0.0001,2]
[406847655,1772227834593,-500.0,0.0001,2]
[406847656,1772227834603,-500.0,0.0001,2]
[406847657,1772227834612,-337.0,0.0001,2]
[406847658,1772227834621,-337.0,0.0001,2]
[406847659,1772227834631,-338.83518363,0.0001,2]
[406847660,1772227834640,-1699.12989508,0.0001,2]
[406847661,1772227834653,-500.0,0.00010137,2]
[406847662,1772227834662,-4609.0,0.00010247,2]
[406847663,1772227834672,-500.0,0.000103,2]
[406847664,1772227834681,-500.0,0.000103,2]
[406847665,1772227834691,-500.02848491,0.000103,2]
[406847666,1772227834700,-500.0,0.000103,2]
[406847667,1772227834709,-500.0,0.000103,2]
[406847668,1772227834719,-500.0,0.000103,2]
[406847669,1772227834728,-500.0,0.000103,2]
[406847670,1772227834738,-575.46584779,0.000103,2]
[406847671,1772227834748,-2000.0,0.00010316,2]